fUSD/lending_fUSD_20240426
["ID","MTS","AMOUNT","RATE_DAILY","PERIOD"]
[323581995,1714095048598,-500.0,0.00011231,2]
[323581996,1714095048607,-500.0,0.00011231,2]
[323581997,1714095048616,-500.0,0.00011231,2]
[323581998,1714095048625,-500.0,0.00011231,2]
[323581999,1714095048634,-500.0,0.00011231,2]
[323582000,1714095048644,-500.0,0.00011231,2]
[323582001,1714095048653,-500.0,0.00011231,2]
[323582002,1714095048662,-500.0,0.00011231,2]
[323582003,1714095048672,-500.0,0.00011231,2]
[323582004,1714095048681,-500.0,0.00011231,2]
[323582005,1714095048691,-2328.88,0.00011231,2]
[323582006,1714095048700,-500.0,0.00011231,2]
[323582007,1714095048709,-500.0,0.00011231,2]
[323582008,1714095048719,-500.0,0.00011231,2]
[323582009,1714095048729,-500.0,0.00011231,2]
[323582010,1714095048738,-500.0,0.00011231,2]
[323582011,1714095048747,-574.21026256,0.00011231,2]
[323582012,1714095048757,-500.0,0.00011231,2]
[323582013,1714095048766,-500.0,0.00011231,2]
[323582014,1714095048775,-805.17132675,0.00011231,2]
[323582015,1714095049250,-439.13867325,0.00011231,2]
[323582016,1714095049261,-500.0,0.00011231,2]
[323582017,1714095049271,-714.38,0.00011231,2]
[323582018,1714095049281,-808.62,0.00011231,2]
[323582019,1714095049290,-500.0,0.00011231,2]
[323582020,1714095049299,-500.0,0.00011231,2]
[323582021,1714095049309,-504.81595364,0.00011231,2]
[323582022,1714095049319,-500.0,0.00011231,2]
[323582023,1714095049328,-500.0,0.00011231,2]
[323582024,1714095049341,-500.0,0.00011231,2]
[323582025,1714095049351,-500.0,0.00011231,2]
[323582026,1714095049360,-500.0,0.00011231,2]
[323582027,1714095049369,-248.37780585,0.00011231,2]
[323582028,1714095049379,-500.0,0.00011231,2]
[323582029,1714095049389,-500.0,0.00011231,2]
[323582030,1714095049398,-500.0,0.00011231,2]
[323582031,1714095049408,-500.0,0.00011231,2]
[323582032,1714095049418,-500.0,0.00011231,2]
[323582033,1714095049428,-500.0,0.00011231,2]
[323582034,1714095049437,-153.58980308,0.00011231,2]
[323582035,1714095049446,-500.0,0.00011231,2]
[323582036,1714095049456,-500.0,0.00011231,2]
[323582037,1714095049466,-500.0,0.00011231,2]
[323582038,1714095049475,-500.0,0.00011231,2]
[323582039,1714095049485,-561.47,0.00011231,2]
[323582040,1714095049494,-500.0,0.00011231,2]
[323582041,1714095049503,-500.0,0.00011231,2]
[323582042,1714095049513,-500.0,0.00011231,2]
[323582043,1714095049522,-500.0,0.00011231,2]
[323582044,1714095049531,-887.01,0.00011231,2]
[323582045,1714095049540,-500.0,0.00011231,2]
[323582046,1714095049550,-500.0,0.00011231,2]
[323582047,1714095049560,-500.0,0.00011231,2]
[323582048,1714095049569,-500.0,0.00011231,2]
[323582049,1714095049578,-500.0,0.00011231,2]
[323582050,1714095049589,-500.0,0.00011231,2]
[323582051,1714095049598,-500.0,0.00011231,2]
[323582052,1714095049607,-500.0,0.00011231,2]
[323582053,1714095049616,-500.0,0.00011231,2]
[323582054,1714095049626,-500.0,0.00011231,2]
[323582055,1714095049635,-500.0,0.00011231,2]
[323582056,1714095049645,-500.0,0.00011231,2]
[323582057,1714095049655,-2383.57,0.00011231,2]
[323582058,1714095049665,-500.0,0.00011231,2]
[323582059,1714095049674,-500.0,0.00011231,2]
[323582060,1714095049683,-500.0,0.00011231,2]
[323582061,1714095049692,-1414.72,0.00011231,2]
[323582062,1714095049702,-500.0,0.00011231,2]
[323582063,1714095049712,-500.0,0.00011231,2]
[323582064,1714095049721,-500.0,0.00011231,2]
[323582065,1714095049731,-6976.06,0.00011231,2]
[323582066,1714095049740,-500.0,0.00011231,2]
[323582067,1714095049749,-527.81,0.00011231,2]
[323582068,1714095049758,-500.0,0.00011231,2]
[323582069,1714095049768,-500.0,0.00011231,2]
[323582070,1714095049777,-258.85777239,0.00011231,2]
[323582071,1714095049786,-505.03550823,0.00011231,2]
[323582072,1714095049796,-500.0,0.00011231,2]
[323582073,1714095049805,-500.0,0.00011231,2]
[323582074,1714095049815,-502.55291483,0.00011231,2]
[323582075,1714095049824,-500.0,0.00011231,2]
[323582076,1714095049833,-500.0,0.00011231,2]
[323582077,1714095049842,-504.47385163,0.00011231,2]
[323582078,1714095049852,-764.63,0.00011231,2]
[323582079,1714095049861,-502.41221001,0.00011231,2]
[323582080,1714095049871,-500.0,0.00011231,2]
[323582081,1714095049880,-501.54445478,0.00011231,2]
[323582082,1714095049890,-379.20527095,0.00011232,2]
[323582083,1714095049901,-279.83447905,0.00011232,2]
[323582084,1714095049911,-500.0,0.00011232,2]
[323582085,1714095049921,-500.0,0.00011232,2]
[323582086,1714095049931,-500.0,0.00011232,2]
[323582087,1714095049941,-880.81,0.00011232,2]
[323582088,1714095049950,-897.41,0.00011232,2]
[323582089,1714095049959,-761.17,0.00011232,2]
[323582090,1714095049969,-500.0,0.00011232,2]
[323582091,1714095049980,-500.0,0.00011232,2]
[323582092,1714095049989,-542.16,0.00011232,2]
[323582093,1714095049998,-500.0,0.00011232,2]
[323582094,1714095050008,-500.0,0.00011232,2]
[323582095,1714095050017,-500.0,0.00011232,2]
[323582096,1714095050027,-845.02,0.00011232,2]
[323582097,1714095050036,-500.0,0.00011232,2]
[323582098,1714095050046,-500.0,0.00011232,2]
[323582099,1714095050055,-500.0,0.00011232,2]
[323582100,1714095050065,-440.73930578,0.00011232,2]
[323582101,1714095050075,-500.0,0.00011232,2]
[323582102,1714095050085,-500.0,0.00011232,2]
[323582103,1714095050095,-500.0,0.00011232,2]
[323582104,1714095050106,-500.0,0.00011232,2]
[323582105,1714095050115,-500.0,0.00011232,2]
[323582106,1714095050125,-500.0,0.00011232,2]
[323582107,1714095050135,-500.0,0.00011232,2]
[323582108,1714095050144,-500.0,0.00011232,2]
[323582109,1714095050154,-500.0,0.00011232,2]
[323582110,1714095050163,-500.0,0.00011232,2]
[323582111,1714095050173,-500.0,0.00011232,2]
[323582112,1714095050182,-500.0,0.00011232,2]
[323582113,1714095050192,-500.0,0.00011232,2]
[323582114,1714095050206,-500.0,0.00011232,2]
[323582115,1714095050215,-500.0,0.00011232,2]
[323582116,1714095050225,-500.0,0.00011232,2]
[323582117,1714095050234,-500.0,0.00011232,2]
[323582118,1714095050244,-500.0,0.00011232,2]
[323582119,1714095050254,-500.0,0.00011232,2]
[323582120,1714095050263,-500.0,0.00011232,2]
[323582121,1714095050273,-500.0,0.00011232,2]
[323582122,1714095050283,-500.0,0.00011232,2]
[323582123,1714095050292,-705.77,0.00011232,2]
[323582124,1714095050302,-500.0,0.00011232,2]
[323582125,1714095050311,-500.0,0.00011232,2]
[323582126,1714095050321,-500.0,0.00011232,2]
[323582127,1714095050332,-500.0,0.00011232,2]
[323582128,1714095050342,-500.0,0.00011232,2]
[323582129,1714095050351,-500.0,0.00011232,2]
[323582130,1714095050362,-500.0,0.00011232,2]
[323582131,1714095050372,-500.0,0.00011232,2]
[323582132,1714095050381,-500.0,0.00011232,2]
[323582133,1714095050390,-500.0,0.00011232,2]
[323582134,1714095050400,-500.0,0.00011232,2]
[323582135,1714095050410,-500.0,0.00011232,2]
[323582136,1714095050420,-500.0,0.00011232,2]
[323582137,1714095050429,-562.92,0.00011232,2]
[323582138,1714095050439,-500.0,0.00011232,2]
[323582139,1714095050449,-500.0,0.00011232,2]
[323582140,1714095050459,-500.0,0.00011232,2]
[323582141,1714095050469,-500.0,0.00011232,2]
[323582142,1714095050479,-500.0,0.00011232,2]
[323582143,1714095050488,-500.0,0.00011232,2]
[323582144,1714095050498,-500.0,0.00011232,2]
[323582145,1714095050508,-487.49179262,0.00011232,2]
[323582146,1714095050518,-508.84,0.00011232,2]
[323582147,1714095050528,-500.0,0.00011232,2]
[323582148,1714095050538,-500.0,0.00011232,2]
[323582149,1714095050547,-500.0,0.00011232,2]
[323582150,1714095050557,-670.41,0.00011232,2]
[323582151,1714095050567,-500.0,0.00011232,2]
[323582152,1714095050577,-500.0,0.00011232,2]
[323582153,1714095050590,-500.0,0.00011232,2]
[323582154,1714095050600,-160.5,0.00011232,2]
[323582155,1714095050610,-837.44,0.00011232,2]
[323582156,1714095050620,-500.0,0.00011232,2]
[323582157,1714095050630,-500.0,0.00011232,2]
[323582158,1714095050640,-500.0,0.00011232,2]
[323582159,1714095050650,-500.0,0.00011232,2]
[323582160,1714095050660,-597.91,0.00011232,2]
[323582161,1714095050670,-500.0,0.00011232,2]
[323582162,1714095050681,-500.0,0.00011232,2]
[323582163,1714095050691,-500.0,0.00011232,2]
[323582164,1714095050702,-500.0,0.00011232,2]
[323582165,1714095050712,-1084.08,0.00011232,2]
[323582166,1714095050722,-500.0,0.00011232,2]
[323582167,1714095050732,-500.0,0.00011232,2]
[323582168,1714095050742,-500.0,0.00011232,2]
[323582169,1714095050751,-500.0,0.00011232,2]
[323582170,1714095050762,-500.0,0.00011232,2]
[323582171,1714095050772,-500.0,0.00011232,2]
[323582172,1714095050781,-500.0,0.00011232,2]
[323582173,1714095050791,-500.0,0.00011232,2]
[323582174,1714095050801,-500.0,0.00011232,2]
[323582175,1714095050810,-653.27,0.00011232,2]
[323582176,1714095050820,-1326.86,0.00011232,2]
[323582177,1714095050830,-500.0,0.00011232,2]
[323582178,1714095050845,-500.0,0.00011232,2]
[323582179,1714095050855,-510.66,0.00011232,2]
[323582180,1714095050864,-500.0,0.00011232,2]
[323582181,1714095050875,-500.0,0.00011232,2]
[323582182,1714095050885,-521.27,0.00011232,2]
[323582183,1714095050895,-500.0,0.00011232,2]
[323582184,1714095050906,-500.0,0.00011232,2]
[323582185,1714095050916,-500.0,0.00011232,2]
[323582186,1714095050926,-500.0,0.00011232,2]
[323582187,1714095050936,-500.0,0.00011232,2]
[323582188,1714095050947,-500.0,0.00011232,2]
[323582189,1714095050957,-500.0,0.00011232,2]
[323582190,1714095050967,-500.0,0.00011232,2]
[323582191,1714095050977,-653.76,0.00011232,2]
[323582192,1714095050987,-500.0,0.00011232,2]
[323582193,1714095050998,-500.0,0.00011232,2]
[323582194,1714095051007,-583.15,0.00011232,2]
[323582195,1714095051017,-781.8,0.00011232,2]
[323582196,1714095051027,-500.0,0.00011232,2]
[323582197,1714095051037,-500.0,0.00011232,2]
[323582198,1714095051047,-500.0,0.00011232,2]
[323582199,1714095051056,-500.0,0.00011232,2]
[323582200,1714095051066,-500.0,0.00011232,2]
[323582201,1714095051077,-500.0,0.00011232,2]
[323582202,1714095051093,-500.0,0.00011232,2]
[323582203,1714095051103,-500.0,0.00011232,2]
[323582204,1714095051113,-871.37,0.00011232,2]
[323582205,1714095051122,-500.0,0.00011232,2]
[323582206,1714095051132,-500.0,0.00011232,2]
[323582207,1714095051142,-500.0,0.00011232,2]
[323582208,1714095051151,-500.0,0.00011232,2]
[323582209,1714095051162,-500.0,0.00011232,2]
[323582210,1714095051172,-500.0,0.00011232,2]
[323582211,1714095051457,-500.0,0.00011232,2]
[323582212,1714095051467,-500.0,0.00011232,2]
[323582213,1714095051476,-500.0,0.00011232,2]
[323582214,1714095051486,-511.78,0.00011232,2]
[323582215,1714095051495,-500.0,0.00011232,2]
[323582216,1714095051505,-500.0,0.00011232,2]
[323582217,1714095051514,-586.97,0.00011232,2]
[323582218,1714095051523,-500.0,0.00011232,2]
[323582219,1714095051533,-500.0,0.00011232,2]
[323582220,1714095051542,-500.0,0.00011232,2]
[323582221,1714095051551,-500.0,0.00011232,2]
[323582222,1714095051560,-500.0,0.00011232,2]
[323582223,1714095051570,-500.0,0.00011232,2]
[323582224,1714095051581,-500.0,0.00011232,2]
[323582225,1714095051593,-500.0,0.00011232,2]
[323582226,1714095051603,-500.0,0.00011232,2]
[323582227,1714095051613,-500.0,0.00011232,2]
[323582228,1714095051622,-673.49,0.00011232,2]
[323582229,1714095051632,-500.0,0.00011232,2]
[323582230,1714095051642,-500.0,0.00011232,2]
[323582231,1714095051653,-500.0,0.00011232,2]
[323582232,1714095051662,-500.0,0.00011232,2]
[323582233,1714095051672,-500.0,0.00011232,2]
[323582234,1714095051682,-500.0,0.00011232,2]
[323582235,1714095051693,-500.0,0.00011232,2]
[323582236,1714095051702,-500.0,0.00011232,2]
[323582237,1714095051712,-500.0,0.00011232,2]
[323582238,1714095051721,-870.93,0.00011232,2]
[323582239,1714095051730,-500.0,0.00011232,2]
[323582240,1714095051739,-500.0,0.00011232,2]
[323582241,1714095051749,-500.0,0.00011232,2]
[323582242,1714095051759,-529.7,0.00011232,2]
[323582243,1714095051769,-542.32,0.00011232,2]
[323582244,1714095051778,-500.0,0.00011232,2]
[323582245,1714095051787,-500.0,0.00011232,2]
[323582246,1714095051797,-500.0,0.00011232,2]
[323582247,1714095051806,-500.0,0.00011232,2]
[323582248,1714095051816,-500.0,0.00011232,2]
[323582249,1714095051826,-500.0,0.00011232,2]
[323582250,1714095051839,-500.0,0.00011232,2]
[323582251,1714095051848,-500.0,0.00011232,2]
[323582252,1714095051858,-677.2,0.00011232,2]
[323582253,1714095051867,-500.0,0.00011232,2]
[323582254,1714095051876,-583.9,0.00011232,2]
[323582255,1714095051886,-535.98,0.00011232,2]
[323582256,1714095051897,-500.0,0.00011232,2]
[323582257,1714095051908,-594.64,0.00011232,2]
[323582258,1714095051918,-500.0,0.00011232,2]
[323582259,1714095051928,-500.0,0.00011232,2]
[323582260,1714095051938,-500.0,0.00011232,2]
[323582261,1714095051948,-500.0,0.00011232,2]
[323582262,1714095051958,-500.0,0.00011232,2]
[323582263,1714095051967,-500.0,0.00011232,2]
[323582264,1714095051979,-500.0,0.00011232,2]
[323582265,1714095051988,-500.0,0.00011232,2]
[323582266,1714095051998,-1142.45,0.00011232,2]
[323582267,1714095052007,-500.0,0.00011232,2]
[323582268,1714095052016,-500.0,0.00011232,2]
[323582269,1714095052025,-502.46,0.00011232,2]
[323582270,1714095052034,-500.0,0.00011232,2]
[323582271,1714095052043,-1026.14,0.00011232,2]
[323582272,1714095052053,-500.0,0.00011232,2]
[323582273,1714095052063,-551.57,0.00011232,2]
[323582274,1714095052072,-500.0,0.00011232,2]
[323582275,1714095052083,-500.0,0.00011232,2]
[323582276,1714095052092,-500.0,0.00011232,2]
[323582277,1714095052101,-723.04,0.00011232,2]
[323582278,1714095052111,-500.0,0.00011232,2]
[323582279,1714095052120,-500.0,0.00011232,2]
[323582280,1714095052130,-662.64,0.00011232,2]
[323582281,1714095052140,-500.0,0.00011232,2]
[323582282,1714095052149,-500.0,0.00011232,2]
[323582283,1714095052159,-500.0,0.00011232,2]
[323582284,1714095052168,-500.0,0.00011232,2]
[323582285,1714095052178,-500.0,0.00011232,2]
[323582286,1714095052187,-500.0,0.00011232,2]
[323582287,1714095052196,-386.12,0.00011232,2]
[323582288,1714095052205,-500.0,0.00011232,2]
[323582289,1714095052214,-500.0,0.00011232,2]
[323582290,1714095052224,-500.0,0.00011232,2]
[323582291,1714095052233,-500.0,0.00011232,2]
[323582292,1714095052243,-500.0,0.00011232,2]
[323582293,1714095052252,-500.0,0.00011232,2]
[323582294,1714095052262,-500.0,0.00011232,2]
[323582295,1714095052271,-500.0,0.00011232,2]
[323582296,1714095052281,-500.0,0.00011232,2]
[323582297,1714095052290,-500.0,0.00011232,2]
[323582298,1714095052300,-530.32,0.00011232,2]
[323582299,1714095052309,-500.0,0.00011232,2]
[323582300,1714095052318,-500.0,0.00011232,2]
[323582301,1714095052328,-600.33,0.00011232,2]
[323582302,1714095052340,-500.0,0.00011232,2]
[323582303,1714095052349,-575.34,0.00011232,2]
[323582304,1714095052359,-500.0,0.00011232,2]
[323582305,1714095052368,-835.1,0.00011232,2]
[323582306,1714095052377,-500.0,0.00011232,2]
[323582307,1714095052387,-500.0,0.00011232,2]
[323582308,1714095052397,-540.1,0.00011232,2]
[323582309,1714095052407,-500.0,0.00011232,2]
[323582310,1714095052416,-500.0,0.00011232,2]
[323582311,1714095052425,-664.45,0.00011232,2]
[323582312,1714095052435,-500.0,0.00011232,2]
[323582313,1714095052445,-500.0,0.00011232,2]
[323582314,1714095052454,-500.0,0.00011232,2]
[323582315,1714095052463,-500.0,0.00011232,2]
[323582316,1714095052473,-500.0,0.00011232,2]
[323582317,1714095052482,-590.27,0.00011232,2]
[323582318,1714095052491,-500.0,0.00011232,2]
[323582319,1714095052500,-500.0,0.00011232,2]
[323582320,1714095052510,-500.0,0.00011232,2]
[323582321,1714095052519,-500.0,0.00011232,2]
[323582322,1714095052528,-500.0,0.00011232,2]
[323582323,1714095052538,-500.0,0.00011232,2]
[323582324,1714095052547,-15326.83,0.00011232,2]
[323582325,1714095052556,-500.0,0.00011232,2]
[323582326,1714095052566,-500.0,0.00011232,2]
[323582327,1714095052575,-1120.8,0.00011232,2]
[323582328,1714095052586,-500.0,0.00011232,2]
[323582329,1714095052596,-500.0,0.00011232,2]
[323582330,1714095052605,-500.0,0.00011232,2]
[323582331,1714095052614,-151.0,0.00011232,2]
[323582332,1714095052624,-825.33,0.00011232,2]
[323582333,1714095052633,-500.0,0.00011232,2]
[323582334,1714095052643,-500.0,0.00011232,2]
[323582335,1714095052652,-500.0,0.00011232,2]
[323582336,1714095052661,-500.0,0.00011232,2]
[323582337,1714095052671,-500.0,0.00011232,2]
[323582338,1714095052680,-500.0,0.00011232,2]
[323582339,1714095052689,-500.0,0.00011232,2]
[323582340,1714095052699,-938.94,0.00011232,2]
[323582341,1714095052708,-500.0,0.00011232,2]
[323582342,1714095052717,-500.0,0.00011232,2]
[323582343,1714095052726,-500.0,0.00011232,2]
[323582344,1714095052736,-879.59,0.00011232,2]
[323582345,1714095052746,-635.02,0.00011232,2]
[323582346,1714095052755,-795.97,0.00011232,2]
[323582347,1714095052764,-601.78,0.00011232,2]
[323582348,1714095052773,-976.05,0.00011232,2]
[323582349,1714095052783,-500.0,0.00011232,2]
[323582350,1714095052792,-1397.16,0.00011232,2]
[323582351,1714095052802,-1387.92,0.00011232,2]
[323582352,1714095052811,-500.0,0.00011232,2]
[323582353,1714095052821,-731.31,0.00011232,2]
[323582354,1714095052830,-500.0,0.00011232,2]
[323582355,1714095052841,-700.5,0.00011232,2]
[323582356,1714095052850,-226.14,0.00011232,2]
[323582357,1714095052859,-570.41,0.00011232,2]
[323582358,1714095052869,-548.82,0.00011232,2]
[323582359,1714095052878,-500.0,0.00011232,2]
[323582360,1714095052888,-500.0,0.00011232,2]
[323582361,1714095052899,-500.0,0.00011232,2]
[323582362,1714095052908,-2151.36,0.00011232,2]
[323582363,1714095052918,-500.0,0.00011232,2]
[323582364,1714095052927,-500.0,0.00011232,2]
[323582365,1714095052936,-1411.02,0.00011232,2]
[323582366,1714095052946,-500.0,0.00011232,2]
[323582367,1714095052955,-358.98,0.00011232,2]
[323582368,1714095052964,-801.41,0.00011232,2]
[323582369,1714095052975,-151.0,0.00011232,2]
[323582370,1714095052985,-500.0,0.00011232,2]
[323582371,1714095052994,-1700.63,0.00011232,2]
[323582372,1714095053003,-777.73,0.00011232,2]
[323582373,1714095053012,-500.0,0.00011232,2]
[323582374,1714095053022,-500.0,0.00011232,2]
[323582375,1714095053031,-582.65,0.00011232,2]
[323582376,1714095053040,-12875.49,0.00011232,2]
[323582377,1714095053049,-500.0,0.00011232,2]
[323582378,1714095053058,-500.0,0.00011232,2]
[323582379,1714095053068,-500.0,0.00011232,2]
[323582380,1714095053078,-500.0,0.00011232,2]
[323582381,1714095053091,-523.45,0.00011232,2]
[323582382,1714095053100,-500.0,0.00011232,2]
[323582383,1714095053110,-500.0,0.00011232,2]
[323582384,1714095053119,-500.0,0.00011232,2]
[323582385,1714095053128,-500.0,0.00011232,2]
[323582386,1714095053137,-500.0,0.00011232,2]
[323582387,1714095053147,-3596.98,0.00011232,2]
[323582388,1714095053156,-500.0,0.00011232,2]
[323582389,1714095053165,-504.55,0.00011232,2]
[323582390,1714095053175,-500.0,0.00011232,2]
[323582391,1714095053184,-1522.05,0.00011232,2]
[323582392,1714095053193,-756.4,0.00011232,2]
[323582393,1714095053202,-500.0,0.00011232,2]
[323582394,1714095053212,-1226.18,0.00011232,2]
[323582395,1714095053221,-893.27,0.00011232,2]
[323582396,1714095053230,-619.16,0.00011232,2]
[323582397,1714095053239,-500.0,0.00011232,2]
[323582398,1714095053248,-500.0,0.00011232,2]
[323582399,1714095053258,-500.0,0.00011232,2]
[323582400,1714095053267,-515.13,0.00011232,2]
[323582401,1714095053276,-1236.55,0.00011232,2]
[323582402,1714095053285,-500.0,0.00011232,2]
[323582403,1714095053295,-946.12,0.00011232,2]
[323582404,1714095053305,-1128.39,0.00011232,2]
[323582405,1714095053315,-500.0,0.00011232,2]
[323582406,1714095053324,-500.0,0.00011232,2]
[323582407,1714095053333,-500.0,0.00011232,2]
[323582408,1714095053344,-3022.71,0.00011232,2]
[323582409,1714095053353,-511.23,0.00011232,2]
[323582410,1714095053362,-500.0,0.00011232,2]
[323582411,1714095053371,-705.19,0.00011232,2]
[323582412,1714095053380,-690.32,0.00011232,2]
[323582413,1714095053389,-500.0,0.00011232,2]
[323582414,1714095053399,-500.0,0.00011232,2]
[323582415,1714095053408,-847.99,0.00011232,2]
[323582416,1714095053418,-500.0,0.00011232,2]
[323582417,1714095053428,-599.9,0.00011232,2]
[323582418,1714095053439,-876.22,0.00011232,2]
[323582419,1714095053449,-500.0,0.00011232,2]
[323582420,1714095053460,-500.0,0.00011232,2]
[323582421,1714095053471,-576.1,0.00011232,2]
[323582422,1714095053481,-1599.75,0.00011232,2]
[323582423,1714095053491,-500.0,0.00011232,2]
[323582424,1714095053502,-1680.13,0.00011232,2]
[323582425,1714095053512,-500.0,0.00011232,2]
[323582426,1714095053522,-500.0,0.00011232,2]
[323582427,1714095053533,-500.0,0.00011232,2]
[323582428,1714095053543,-500.0,0.00011232,2]
[323582429,1714095053552,-500.0,0.00011232,2]
[323582430,1714095053562,-528.46,0.00011232,2]
[323582431,1714095053571,-500.0,0.00011232,2]
[323582432,1714095053581,-965.58,0.00011232,2]
[323582433,1714095053592,-2117.09,0.00011232,2]
[323582434,1714095053601,-4164.95,0.00011232,2]
[323582435,1714095053610,-1539.95,0.00011232,2]
[323582436,1714095053620,-516.87,0.00011232,2]
[323582437,1714095053629,-500.0,0.00011232,2]
[323582438,1714095053638,-367.89180429,0.00011232,2]
[323582439,1714095053648,-3704.39,0.00011232,2]
[323582440,1714095053658,-500.0,0.00011232,2]
[323582441,1714095053667,-577.27,0.00011232,2]
[323582442,1714095053676,-574.44,0.00011232,2]
[323582443,1714095053686,-988.84,0.00011232,2]
[323582444,1714095053695,-500.0,0.00011232,2]
[323582445,1714095053707,-1926.5,0.00011232,2]
[323582446,1714095053716,-500.0,0.00011232,2]
[323582447,1714095053726,-3122.43,0.00011232,2]
[323582448,1714095053735,-500.0,0.00011232,2]
[323582449,1714095053744,-500.0,0.00011232,2]
[323582450,1714095053753,-3149.24,0.00011232,2]
[323582451,1714095053762,-1043.16,0.00011232,2]
[323582452,1714095053771,-559.78,0.00011232,2]
[323582453,1714095053780,-1104.02,0.00011232,2]
[323582454,1714095053789,-4679.33,0.00011232,2]
[323582455,1714095053798,-276.47137895,0.00011232,2]
[323582456,1714095053807,-606.22,0.00011232,2]
[323582457,1714095053816,-2471.15,0.00011232,2]
[323582458,1714095053825,-500.0,0.00011232,2]
[323582459,1714095053834,-500.0,0.00011232,2]
[323582460,1714095053845,-500.0,0.00011232,2]
[323582461,1714095053854,-2778.28,0.00011232,2]
[323582462,1714095053863,-500.0,0.00011232,2]
[323582463,1714095053872,-536.8262733,0.00011232,2]
[323582464,1714095053881,-517.87428249,0.00011232,2]
[323582465,1714095053890,-524.01,0.00011232,2]
[323582466,1714095053900,-634.0348794,0.00011232,2]
[323582467,1714095053909,-990.78,0.00011232,2]
[323582468,1714095053918,-514.93,0.00011232,2]
[323582469,1714095053927,-500.0,0.00011232,2]
[323582470,1714095053936,-502.62810884,0.00011232,2]
[323582471,1714095053945,-517.09747755,0.00011232,2]
[323582472,1714095053954,-500.0,0.00011232,2]
[323582473,1714095053963,-500.0,0.00011232,2]
[323582474,1714095053972,-989.1,0.00011232,2]
[323582475,1714095053982,-500.0,0.00011232,2]
[323582476,1714095053993,-882.58,0.00011232,2]
[323582477,1714095054004,-501.66872806,0.00011232,2]
[323582478,1714095054013,-501.89101533,0.00011232,2]
[323582479,1714095054024,-2917.58,0.00011232,2]
[323582480,1714095054036,-500.0,0.00011232,2]
[323582481,1714095054051,-500.0,0.00011232,2]
[323582482,1714095054065,-500.0,0.00011232,2]
[323582483,1714095054079,-500.0,0.00011232,2]
[323582484,1714095054095,-501.36004628,0.00011232,2]
[323582485,1714095054106,-500.0,0.00011232,2]
[323582486,1714095054116,-561.89,0.00011232,2]
[323582487,1714095054128,-698.34,0.00011232,2]
[323582488,1714095054140,-500.0,0.00011232,2]
[323582489,1714095054154,-1146.36,0.00011232,2]
[323582490,1714095054167,-500.0,0.00011232,2]
[323582491,1714095054180,-507.01689776,0.00011232,2]
[323582492,1714095054191,-150.0,0.00011274,2]
[323582493,1714095054204,-150.0,0.00011285,2]
[323582494,1714095054215,-150.0,0.00011288,2]